bitfinex/quotes_SOLUSD_20260222
["timestamp","ask_amount","ask_price","bid_price","bid_amount"]
[1771775945024,0.28432314,83.529,83.492,1.19870035]
[1771775946127,0.86025114,83.526,83.494,1.19870035]
[1771775946924,0.28432314,83.521,83.494,1.19870035]
[1771775947123,0.28432314,83.519,83.494,1.19870035]
[1771775948211,11.97346679,83.518,83.494,1.19870035]
[1771775950913,3.08346588,83.53,83.494,1.19870035]
[1771775950914,11.97189,83.529,83.494,1.19870035]
[1771775951615,11.97189,83.529,83.501,1.27813094]
[1771775954339,0.88540785,83.529,83.501,1.27813094]
[1771775955415,11.97676507,83.637,83.49,3.08346589]
[1771775955416,0.88872186,83.508,83.49,1e-08]
[1771775955733,11.97203333,83.528,83.49,1e-08]
[1771775956030,11.97203333,83.528,83.491,1.23020844]
[1771775956838,0.89199782,83.536,83.491,1.23020844]
[1771775957020,0.89199782,83.538,83.501,1.23020844]
[1771775957524,0.89523614,83.528,83.501,1.23020844]
[1771775961739,11.97217666,83.527,83.501,1.23020844]
[1771775962616,0.28432314,83.529,83.503,1.23020844]
[1771775963932,0.91389978,83.528,83.503,1.23020844]
[1771775965042,11.97217666,83.527,83.503,1.23020844]
[1771775965244,12.8890632,83.527,83.503,1.23020844]
[1771775968948,11.97217666,83.527,83.503,1.23020844]
[1771775974139,11.97246333,83.525,83.503,1.23020844]
[1771775977840,29.92272489,83.549,83.505,1.33679564]
[1771775978056,29.92272489,83.549,83.511,1.33679564]
[1771775979540,11.96916742,83.548,83.511,1.33679564]
[1771775979860,3.08572023,83.54,83.511,1.33679564]
[1771775980040,0.28432314,83.539,83.511,1.33679564]
[1771775984051,3.08572023,83.55,83.511,1.33679564]
[1771775984259,11.96902416,83.549,83.513,1.33679564]
[1771775985358,0.02240414,83.548,83.513,1.33679564]
[1771775986362,0.02240414,83.548,83.515,1.33679564]
[1771775988562,0.02973636,83.547,83.517,1.33679564]
[1771775991373,0.02973636,83.547,83.519,1.33679564]
[1771775996769,0.28432314,83.539,83.515,1.33679564]
[1771775996968,0.04809088,83.538,83.515,1.33679564]
[1771776002575,0.04809088,83.538,83.51,1.33679564]
[1771776003177,0.06281692,83.537,83.51,1.33679564]
[1771776003373,0.28432314,83.529,83.51,1.33679564]
[1771776003699,0.06281692,83.518,83.49,1e-08]
[1771776003898,0.34714006,83.509,83.48,0.2]
[1771776004104,0.06281692,83.488,83.47,0.13718308]
[1771776004399,3.08572023,83.48,83.47,0.13718308]
[1771776004790,11.9783689,83.484,83.47,0.13718308]
[1771776004983,3.08572023,83.48,83.47,0.13718308]
[1771776005299,0.28432314,83.479,83.46,1e-08]
[1771776005501,0.28432314,83.473,83.442,1.06820411]
[1771776006499,0.28432314,83.47,83.443,11.98422875]
[1771776006699,0.28432314,83.47,83.44,0.2]
[1771776007411,0.28432314,83.47,83.441,1.21869729]
[1771776007613,11.97948847,83.477,83.451,1.21869729]
[1771776008703,0.28432314,83.483,83.451,1.21869729]
[1771776009016,3.08572023,83.46,83.443,1.30482697]
[1771776009219,0.28432314,83.469,83.444,1.30482697]
[1771776010099,3.08572023,83.47,83.444,1.30482697]
[1771776010100,0.28432314,83.479,83.444,1.30482697]
[1771776011910,11.9790606,83.479,83.451,1.30482697]
[1771776013420,3.08572023,83.47,83.451,1.30482697]
[1771776013621,0.32250194,83.478,83.451,1.30482697]
[1771776013999,11.9793476,83.477,83.451,1.30482697]
[1771776015207,3.08572023,83.48,83.451,1.30482697]
[1771776015406,11.97841579,83.484,83.451,1.30482697]
[1771776015925,15.0647279,83.48,83.452,11.98293629]
[1771776016116,0.28432314,83.479,83.453,1.26567788]
[1771776016626,0.33134328,83.478,83.453,1.26567788]
[1771776016831,3.08572023,83.47,83.453,1.26567788]
[1771776018427,0.33134328,83.478,83.453,1.26567788]
[1771776019031,11.9793476,83.477,83.453,1.26567788]
[1771776021022,3.08572023,83.47,83.453,1.26567788]
[1771776022035,11.9793476,83.477,83.453,1.26567788]
[1771776022621,11.9793476,83.477,83.44,3.28572023]
[1771776022622,0.62818547,83.469,83.452,1.26567788]
[1771776023520,12.32650505,83.468,83.441,1.26567788]
[1771776023715,0.34586577,83.467,83.441,1.26567788]
[1771776023910,3.08572023,83.46,83.441,1.26567788]
[1771776024733,11.98063928,83.468,83.43,0.2]
[1771776024734,0.28432314,83.449,83.43,0.2]
[1771776024935,3.08572023,83.46,83.43,0.2]
[1771776025117,0.28432314,83.459,83.431,11.98595246]
[1771776025429,1.32553562,83.463,83.431,11.98595246]
[1771776025832,3.08572023,83.46,83.431,11.98595246]
[1771776026726,3.08572023,83.46,83.432,1.26567788]
[1771776027639,1.60985876,83.459,83.432,1.26567788]
[1771776029836,11.98150056,83.462,83.434,1.26567788]
[1771776031335,12.26481889,83.469,83.436,1.26567788]
[1771776031635,13.59035451,83.469,83.436,1.26567788]
[1771776032523,13.59035451,83.469,83.441,1.26567788]
[1771776032524,13.30603137,83.469,83.441,1.26567788]
[1771776035535,3.09019449,83.47,83.441,1.26567788]
[1771776035536,11.98078282,83.467,83.441,1.26567788]
[1771776035734,1.32553562,83.466,83.441,1.26567788]
[1771776037027,1.32553562,83.459,83.432,1.26567788]
[1771776042348,3.09019449,83.45,83.432,1.26567788]
[1771776042651,1.28163017,83.457,83.432,1.26567788]
[1771776042839,1.28163017,83.457,83.433,11.98566514]
[1771776043156,1.28163017,83.457,83.434,1.27006912]
[1771776043842,3.09019449,83.46,83.434,1.27006912]
[1771776044435,11.98193124,83.459,83.434,1.27006912]
[1771776044752,13.26356141,83.459,83.436,1.27006912]
[1771776045342,1.28163017,83.458,83.436,1.27006912]
[1771776045853,1.28163017,83.458,83.431,1.27006912]
[1771776049036,1.28163017,83.456,83.431,1.27006912]
[1771776049237,0.28432314,83.469,83.433,1.27006912]
[1771776050052,1.28163017,83.469,83.433,1.27006912]
[1771776051560,0.28432314,83.473,83.435,1.27006912]
[1771776051561,1.28163017,83.467,83.435,1.27006912]
[1771776056542,1.28163017,83.465,83.437,1.27006912]
[1771776065852,3.09019449,83.48,83.43,3.29019449]
[1771776065853,1.28163017,83.481,83.441,1.27006912]
[1771776066067,1.28163017,83.479,83.441,1.27006912]
[1771776067767,1.28163017,83.491,83.461,1.27006912]
[1771776068570,11.9771626,83.493,83.461,1.27006912]
[1771776069265,11.9771626,83.493,83.471,1.34360555]
[1771776069866,214.6149427,83.882,83.442,41.94530331]
[1771776069867,11.97600003,83.501,83.481,1.34360555]
[1771776074969,1.33630791,83.502,83.481,1.34360555]
[1771776076280,1.33630791,83.5,83.481,1.34360555]
[1771776077273,11.97590448,83.501,83.481,1.34360555]
[1771776079374,11.97475721,83.509,83.481,1.34360555]
[1771776079562,12.25908035,83.509,83.481,1.34360555]
[1771776080483,11.975044,83.507,83.481,1.34360555]
[1771776080684,13.31135191,83.507,83.481,1.34360555]
[1771776081971,11.975044,83.507,83.481,1.34360555]
[1771776082870,1.33630791,83.506,83.481,1.34360555]
[1771776087486,11.97533081,83.505,83.481,1.34360555]
[1771776087787,1.62063105,83.499,83.465,11.98095215]
[1771776089587,1.33630791,83.497,83.461,11.98164412]
[1771776089786,1.33630791,83.497,83.462,1.42737899]
[1771776091081,1.33630791,83.497,83.47,3.09019449]
[1771776091392,1.33630791,83.497,83.471,1.42737899]
[1771776093576,11.97633476,83.498,83.471,1.42737899]
[1771776095790,13.31264267,83.498,83.471,1.42737899]
[1771776096099,1.33630791,83.497,83.471,1.42737899]
[1771776102194,1.33630791,83.497,83.473,1.37072516]
[1771776102401,11.97292316,83.522,83.491,1.37072516]
[1771776102584,12.35583419,83.57,83.48,3.08786444]
[1771776102585,21.31846197,83.516,83.51,3.08786444]
[1771776102788,1.40146372,83.53,83.51,3.08786444]
[1771776103183,1.40146372,83.53,83.5,3.08786444]
[1771776103383,29.92471283,83.543,83.5,3.08786444]
[1771776103384,1.47306718,83.528,83.5,3.08786444]
[1771776103904,1.47306718,83.528,83.49,3.08786444]
[1771776104081,0.28432314,83.529,83.475,3.69383402]
[1771776104282,0.1,83.69,83.45,3.08786444]
[1771776104283,5.64518502,83.492,83.45,3.08786444]
[1771776104598,1.75739032,83.483,83.45,3.08786444]
[1771776104986,1.75739032,83.483,83.46,3.08786444]
[1771776105713,1.75739032,83.483,83.45,3.08786444]
[1771776106304,1.75739032,83.481,83.45,3.08786444]
[1771776106601,1.75739032,83.481,83.443,11.98421411]
[1771776108577,1.47306718,83.478,83.443,11.98421411]
[1771776110007,1.47306718,83.478,83.45,3.08786444]
[1771776117306,1.47306718,83.476,83.45,3.08786444]
[1771776118801,1.47306718,83.476,83.46,3.08786444]
[1771776119001,29.93888975,83.504,83.46,3.08786444]
[1771776119190,17.33647952,83.503,83.47,3.08786444]
[1771776119508,0.28432314,83.5,83.47,3.08786444]
[1771776120017,0.14216157,83.502,83.48,0.25992046]
[1771776120191,0.14216157,83.502,83.47,3.08786444]
[1771776120393,0.28432314,83.502,83.47,3.08786444]
[1771776120692,0.14216157,83.502,83.466,1.37072516]
[1771776120893,0.14216157,83.502,83.47,3.08786444]
[1771776121115,1.19219264,83.499,83.47,3.08786444]
[1771776122001,1.19219264,83.499,83.481,1.37072516]
[1771776122205,1.19219264,83.499,83.49,3.08786444]
[1771776122806,1.17171714,83.507,83.49,3.08786444]
[1771776123194,1.45604028,83.513,83.491,1.37072516]
[1771776123395,1.17171714,83.513,83.5,3.08786444]
[1771776123607,1.16165544,83.518,83.5,3.08786444]
[1771776124009,1.16165544,83.516,83.464,1.37072516]
[1771776124310,1.1495818,83.5,83.471,1.37072516]
[1771776124615,1.1495818,83.498,83.471,1.37072516]
[1771776125518,1.13603278,83.496,83.471,1.37072516]
[1771776126014,1.13603278,83.496,83.47,3.08786444]
[1771776126218,1.13603278,83.496,83.471,1.37072516]
[1771776126421,1.13603278,83.496,83.443,3.69383402]
[1771776126422,102.8,83.537,83.491,1.37541501]
[1771776126711,59.84455819,83.55,83.51,3.08786444]
[1771776126918,29.92510871,83.542,83.51,1.61479726]
[1771776127104,0.28432314,83.541,83.51,1.61479726]
[1771776127820,0.14216157,83.541,83.51,1.61479726]
[1771776128013,0.28432314,83.541,83.51,1.61479726]
[1771776129718,0.28432314,83.539,83.5,4.46327945]
[1771776130517,0.28432314,83.539,83.501,1.37541501]
[1771776133209,0.28432314,83.537,83.501,1.37541501]
[1771776134425,0.28432314,83.537,83.51,3.08786444]
[1771776135707,0.28432314,83.535,83.5,3.08786444]
[1771776137217,0.28432314,83.529,83.5,4.46327945]
[1771776137635,0.28432314,83.529,83.501,1.37541501]
[1771776138131,11.96931068,83.547,83.521,1.37541501]
[1771776138427,0.28432314,83.546,83.521,1.37541501]
[1771776139514,0.28432314,83.544,83.521,1.37541501]
[1771776139908,103.6,83.559,83.521,1.37541501]
[1771776140112,103.6,83.559,83.483,3.69383402]
[1771776140113,0.28432314,83.556,83.515,1.37541501]
[1771776140824,0.28432314,83.556,83.521,1.37541501]
[1771776141024,11.96773498,83.558,83.531,1.37541501]
[1771776141226,11.96773498,83.558,83.54,3.08786444]
[1771776141930,11.96773498,83.558,83.541,1.37541501]
[1771776145736,9.34643334,83.558,83.541,1.26365646]
[1771776146042,0.28432314,83.559,83.542,1.26365646]
[1771776146222,0.2,83.56,83.543,1.05249839]
[1771776147639,11.96773498,83.558,83.543,1.05249839]
[1771776151843,11.96773498,83.558,83.52,3.08786444]
[1771776152042,11.96773498,83.558,83.54,3.08786444]
[1771776153147,0.2,83.56,83.54,3.08786444]
[1771776153445,0.2,83.56,83.54,3.08270327]
[1771776155147,0.2,83.56,83.55,3.08270327]
[1771776155346,0.2,83.57,83.55,3.08270327]
[1771776156342,11.9661597,83.569,83.55,3.08270327]
[1771776157533,13.25172426,83.569,83.55,3.08270327]
[1771776157847,1.28556456,83.568,83.55,3.08270327]
[1771776158231,1.28556456,83.568,83.54,3.08270327]
[1771776158428,1.22658988,83.562,83.529,11.97183595]
[1771776158629,1.22658988,83.552,83.51,3.08270327]
[1771776158831,1.51091302,83.549,83.51,3.08270327]
[1771776159041,1.51091302,83.547,83.51,3.08270327]
[1771776160323,1.51091302,83.545,83.51,3.08270327]
[1771776164644,7.4,83.54,83.51,3.08270327]
[1771776164851,1.22658988,83.538,83.51,3.08270327]
[1771776168750,1.22658988,83.538,83.511,11.97447042]
[1771776174763,1.22658988,83.538,83.52,3.08270327]
[1771776175059,7.4,83.54,83.52,3.08270327]
[1771776179768,8.62658988,83.54,83.52,3.08270327]
[1771776180565,7.4,83.54,83.53,3.08270327]
[1771776182481,3.28270327,83.57,83.53,15.05432007]
[1771776182482,1.22658988,83.566,83.53,15.05432007]
[1771776182768,1.22658988,83.562,83.55,3.08270327]
[1771776183850,1.22658988,83.568,83.55,3.08270327]
[1771776185777,1.22658988,83.568,83.52,3.08270327]
[1771776185778,1.22658988,83.579,83.56,3.08270327]
[1771776186655,1.22658988,83.571,83.524,3.69383402]
[1771776186858,1.22658988,83.571,83.55,3.08270327]
[1771776192774,1.22658988,83.571,83.55,15.05154887]
[1771776192976,0.28432314,83.589,83.56,3.08270327]
[1771776193275,11.9632966,83.589,83.56,3.08270327]
[1771776193577,11.9632966,83.589,83.57,3.08270327]
[1771776193782,0.28432314,83.588,83.57,3.08270327]
[1771776194485,0.28432314,83.586,83.57,3.08270327]
[1771776194974,0.28432314,83.582,83.57,3.08270327]
[1771776195160,0.90658375,83.581,83.57,3.08270327]
[1771776195360,0.2,83.59,83.57,3.08270327]
[1771776196076,0.2,83.59,83.58,3.08270327]
[1771776197696,1.10658375,83.59,83.58,3.08270327]
[1771776200791,1.10658375,83.59,83.571,0.87064099]
[1771776204892,0.90658375,83.597,83.571,0.87064099]
[1771776205097,0.90658375,83.599,83.572,11.96573014]
[1771776205287,0.90658375,83.599,83.546,3.69383402]
[1771776205288,0.90658375,83.591,83.564,11.96683819]
[1771776205489,0.90658375,83.576,83.536,0.87064099]
[1771776205689,0.28432314,83.552,83.522,0.87064099]
[1771776205992,0.90658375,83.551,83.522,0.87064099]
[1771776206991,0.90658375,83.551,83.53,3.08270327]
[1771776207598,0.90658375,83.551,83.53,3.95334426]
[1771776207979,0.90658375,83.549,83.53,3.95334426]
[1771776208185,0.90658375,83.549,83.53,3.08270327]
[1771776208782,0.90658375,83.549,83.523,11.97275002]
[1771776210204,7.4,83.55,83.496,63.57657557]
[1771776210205,0.90658375,83.532,83.5,3.08270327]
[1771776210384,0.90658375,83.532,83.501,0.87064099]
[1771776213697,0.90658375,83.532,83.502,11.97576105]
[1771776214396,0.90658375,83.532,83.503,0.87064099]
[1771776216902,0.90658375,83.532,83.504,11.97547422]
[1771776217199,0.90658375,83.532,83.504,12.84611521]
[1771776217606,0.90658375,83.532,83.505,0.87064099]
[1771776218610,11.97160335,83.531,83.5,0.80521237]
[1771776218909,0.82559583,83.522,83.5,3.89064823]
[1771776219105,0.82559583,83.522,83.5,3.08543586]
[1771776219303,0.82559583,83.522,83.501,0.80521237]
[1771776220221,0.82559583,83.515,83.482,0.80521237]
[1771776220405,3.08543586,83.52,83.481,11.97877361]
[1771776220406,0.82559583,83.511,83.481,11.97877361]
[1771776220709,0.82559583,83.511,83.481,12.78398598]
[1771776220906,0.82559583,83.511,83.482,0.80521237]
[1771776223805,0.82559583,83.511,83.484,0.80521237]
[1771776224012,0.28432314,83.509,83.48,3.08543586]
[1771776224203,0.82559583,83.502,83.479,0.80521237]
[1771776225519,0.82559583,83.502,83.48,3.08543586]
[1771776226297,0.82559583,83.502,83.48,3.89064823]
[1771776226598,0.82559583,83.512,83.491,0.80521237]
[1771776230812,0.82559583,83.512,83.47,0.1]
[1771776230813,0.82559583,83.52,83.501,0.80521237]
[1771776231695,0.82559583,83.52,83.493,0.80521237]
[1771776231901,0.82559583,83.52,83.494,11.97690852]
[1771776232101,0.82559583,83.52,83.495,0.80521237]
[1771776233519,0.82559583,83.52,83.501,0.80521237]
[1771776237211,0.82559583,83.52,83.44,15.27243926]
[1771776237212,0.82559583,83.515,83.48,3.08543586]
[1771776237412,0.82559583,83.505,83.476,0.80521237]
[1771776237609,0.82559583,83.505,83.48,3.08543586]
[1771776237810,0.82559583,83.505,83.476,0.80521237]
[1771776239613,0.82559583,83.503,83.478,0.80521237]
[1771776241223,0.82559583,83.503,83.48,3.08543586]
[1771776241629,0.82559583,83.503,83.481,0.80521237]
[1771776242426,0.82559583,83.503,83.477,11.9793476]
[1771776242629,0.82559583,83.503,83.477,12.78455997]
[1771776243509,0.82559583,83.501,83.477,12.78455997]
[1771776244728,0.82559583,83.501,83.481,0.80521237]
[1771776245228,0.82559583,83.499,83.471,11.98020869]
[1771776245433,0.82559583,83.499,83.471,12.78542106]
[1771776245933,0.82559583,83.499,83.472,0.80521237]
[1771776246511,0.82559583,83.499,83.473,11.97992165]
[1771776247438,0.82559583,83.499,83.473,12.78513402]
[1771776247637,0.82559583,83.495,83.473,0.80521237]
[1771776248331,0.82559583,83.495,83.47,0.1]
[1771776248938,0.72193433,83.493,83.47,3.18543586]
[1771776249938,0.72193433,83.493,83.47,0.1]
[1771776250730,0.72193433,83.493,83.47,0.81458643]
[1771776250928,0.72193433,83.5,83.481,0.71458643]
[1771776251136,0.72193433,83.505,83.481,0.71458643]
[1771776253736,29.93027369,83.528,83.482,11.97863012]
[1771776253940,0.14216157,83.527,83.491,0.71458643]
[1771776254123,0.14216157,83.527,83.501,0.71458643]
[1771776255026,0.14216157,83.528,83.501,0.71458643]
[1771776255840,0.67579206,83.525,83.501,0.71458643]
[1771776256240,0.67579206,83.524,83.501,0.71458643]
[1771776268653,0.67579206,83.524,83.503,0.67888948]
[1771776268849,11.97275002,83.523,83.503,0.67888948]
[1771776270856,0.67579206,83.523,83.503,0.67888948]
[1771776271151,0.67579206,83.535,83.5,15.06135592]
[1771776271357,0.67579206,83.535,83.501,0.67888948]
[1771776272660,0.67579206,83.535,83.491,0.67888948]
[1771776272866,0.67579206,83.515,83.486,12.65694298]
[1771776273048,0.67579206,83.515,83.487,0.67888948]
[1771776273655,0.67579206,83.515,83.491,0.67888948]
[1771776275568,0.67579206,83.513,83.491,0.67888948]
[1771776277464,0.67579206,83.511,83.491,0.67888948]
[1771776277665,0.67579206,83.511,83.484,0.67888948]
[1771776278264,0.67579206,83.511,83.49,3.08639154]
[1771776278646,0.67579206,83.511,83.491,0.66690349]
[1771776288288,0.64754342,83.509,83.491,0.66690349]
[1771776289185,0.64754342,83.496,83.472,0.66690349]
[1771776289391,0.28432314,83.499,83.472,0.66690349]
[1771776289789,0.28432314,83.496,83.472,0.66690349]
[1771776291297,11.97676507,83.495,83.472,0.66690349]
[1771776295893,0.28432314,83.512,83.481,0.66690349]
[1771776296287,0.14216157,83.512,83.481,0.66690349]
[1771776297084,0.28432314,83.516,83.481,0.66690349]
[1771776297901,0.28432314,83.515,83.481,0.66690349]
[1771776299193,0.28432314,83.513,83.481,0.66690349]
[1771776299387,0.64754342,83.516,83.482,11.97863012]
[1771776299692,0.28432314,83.517,83.491,0.66690349]
[1771776300269,0.64754342,83.526,83.491,0.66690349]
[1771776301290,0.64754342,83.526,83.493,0.66690349]
[1771776301592,3.08639154,83.53,83.493,0.66690349]
[1771776301593,0.64754342,83.524,83.493,0.66690349]
[1771776302497,0.27946108,83.524,83.493,0.66690349]
[1771776303293,0.27946108,83.524,83.495,0.66690349]
[1771776304496,0.27946108,83.524,83.496,11.97662163]
[1771776304696,0.27946108,83.524,83.497,0.66690349]
[1771776305599,0.47958726,83.522,83.497,0.66690349]
[1771776306883,0.47672039,83.519,83.499,0.66690349]
[1771776308898,0.57874948,83.515,83.49,3.08639154]
[1771776309386,0.57874948,83.515,83.491,11.97733887]
[1771776310407,0.57874948,83.515,83.483,11.97848663]
[1771776310908,0.57874948,83.513,83.485,11.97819967]
[1771776311992,0.57874948,83.513,83.485,0.59704845]
[1771776313189,0.57874948,83.505,83.485,0.59704845]
[1771776315120,0.60193515,83.504,83.485,0.59704845]
[1771776323801,0.60193515,83.502,83.485,0.59704845]
[1771776327018,0.60193515,83.5,83.48,0.57740089]
[1771776327195,0.60193515,83.5,83.473,0.57740089]
[1771776329202,0.60193515,83.5,83.474,11.97977813]
[1771776329402,0.60193515,83.5,83.475,0.57740089]
[1771776330706,0.60193515,83.486,83.459,0.57740089]
[1771776331110,0.60193515,83.476,83.459,0.57740089]
[1771776331620,11.97963462,83.475,83.459,0.57740089]
[1771776331816,12.58156977,83.475,83.459,0.57740089]
[1771776332208,0.60193515,83.475,83.459,0.57740089]
[1771776334314,11.97977813,83.474,83.459,0.57740089]
[1771776334513,0.60193515,83.473,83.449,0.57740089]
[1771776335409,0.60193515,83.465,83.444,0.57740089]
[1771776337223,0.60193515,83.463,83.444,0.57740089]
[1771776337423,0.60193515,83.455,83.44,0.1]
[1771776337603,0.60193515,83.455,83.44,0.67740089]
[1771776337807,0.28432314,83.469,83.441,0.57740089]
[1771776338036,0.28432314,83.469,83.451,0.57740089]
[1771776339322,0.86459022,83.467,83.451,0.57740089]
[1771776339616,0.58026708,83.466,83.451,0.57740089]
[1771776340023,0.28432314,83.467,83.451,0.57740089]
[1771776341718,13.49192993,83.531,83.452,11.98293629]
[1771776341923,3.09024637,83.49,83.453,0.56071231]
[1771776343731,3.09024637,83.49,83.45,3.09024637]
[1771776343732,0.28432314,83.488,83.455,0.56071231]
[1771776343937,0.28432314,83.479,83.455,0.56071231]
[1771776344233,0.76013766,83.479,83.455,0.56071231]
[1771776344610,0.47406075,83.478,83.455,0.56071231]
[1771776347734,11.9793476,83.477,83.455,0.56071231]
[1771776348422,12.44850619,83.477,83.455,0.56071231]
[1771776348733,0.46772047,83.476,83.455,0.56071231]
[1771776349649,0.46629887,83.474,83.455,0.56071231]
[1771776350246,0.46629887,83.468,83.441,0.56071231]
[1771776351740,0.46350447,83.466,83.442,0.56071231]
[1771776354420,11.98078282,83.467,83.442,0.56071231]
[1771776358552,12.43500002,83.467,83.442,0.56071231]
[1771776358728,11.9810699,83.465,83.442,0.56071231]
[1771776368641,12.42212873,83.465,83.442,0.56071231]
[1771776368828,11.9810699,83.465,83.442,0.56071231]
[1771776370146,0.43994346,83.464,83.442,0.56071231]
[1771776370544,0.43994346,83.464,83.443,0.56142232]
[1771776370846,0.43884091,83.492,83.451,0.56142232]
[1771776371026,0.43884091,83.492,83.461,0.56142232]
[1771776371223,0.28432314,83.489,83.461,0.56142232]
[1771776371423,0.43884091,83.488,83.461,0.56142232]
[1771776371845,12.41661152,83.488,83.461,0.56142232]
[1771776372228,0.43775102,83.487,83.461,0.56142232]
[1771776376552,11.97777061,83.488,83.461,0.56142232]
[1771776380540,0.42751745,83.487,83.461,0.56142232]
[1771776380863,11.97777061,83.488,83.44,0.1]
[1771776380864,0.53790345,83.477,83.44,0.1]
[1771776381062,0.53790345,83.477,83.44,3.19024637]
[1771776381442,0.53790345,83.477,83.44,0.1]
[1771776382852,0.53790345,83.473,83.44,0.1]
[1771776383044,0.53790345,83.468,83.44,0.1]
[1771776385255,0.53790345,83.459,83.43,0.2]
[1771776387159,0.53790345,83.457,83.43,0.2]
[1771776387543,0.53790345,83.448,83.421,0.55138709]
[1771776389455,0.53790345,83.446,83.421,0.55138709]
[1771776391253,11.98301407,83.452,83.423,0.55138709]
[1771776391446,0.53790345,83.455,83.431,0.55138709]
[1771776396765,11.98264912,83.454,83.431,0.55138709]
[1771776397065,0.53790345,83.453,83.431,0.55138709]
[1771776399958,0.53133469,83.451,83.431,0.55138709]
[1771776404669,0.53133469,83.449,83.421,0.53760253]
[1771776405752,0.53133469,83.449,83.421,11.98738926]
[1771776405952,0.53133469,83.449,83.422,0.53760253]
[1771776406375,0.53133469,83.447,83.422,0.53760253]
[1771776408977,0.53133469,83.445,83.422,0.53760253]
[1771776410468,11.98408513,83.444,83.422,0.53760253]
[1771776410871,0.53133469,83.443,83.422,0.53760253]
[1771776412080,0.53133469,83.449,83.431,0.53760253]
[1771776412283,0.53133469,83.449,83.421,0.53760253]
[1771776413566,0.53133469,83.448,83.421,0.53760253]
[1771776413785,0.53133469,83.446,83.421,0.53760253]
[1771776416476,11.98394151,83.445,83.421,0.53760253]
[1771776416677,12.5152762,83.445,83.421,0.53760253]
[1771776416884,0.53133469,83.444,83.421,0.53760253]
[1771776417691,12.51556344,83.443,83.421,0.53760253]
[1771776419921,0.53133469,83.442,83.421,0.53760253]
[1771776422320,0.53133469,83.438,83.411,0.53760253]
[1771776422523,0.53133469,83.438,83.393,29.97851873]
[1771776422524,0.53133469,83.418,83.372,0.53760253]
[1771776422704,0.53133469,83.408,83.378,11.99348239]
[1771776423026,0.53133469,83.418,83.382,0.53760253]
[1771776425321,0.28432314,83.419,83.384,0.53760253]
[1771776425322,0.53133469,83.416,83.384,0.53760253]
[1771776427725,0.53133469,83.409,83.384,0.53760253]
[1771776427903,0.53133469,83.409,83.38,0.2]
[1771776428323,0.53133469,83.409,83.38,0.67962127]
[1771776428711,0.53133469,83.409,83.381,0.47962127]
[1771776429928,0.49836167,83.407,83.381,0.47962127]
[1771776431510,0.49836167,83.405,83.37,0.2]
[1771776431710,0.49836167,83.395,83.37,3.09145715]
[1771776431911,104.7,83.419,83.38,3.09145715]
[1771776431912,11.99007457,83.403,83.38,3.09145715]
[1771776432826,11.98869018,83.412,83.39,3.09145715]
[1771776433424,0.49836167,83.411,83.36,3.09145715]
[1771776433627,0.49836167,83.411,83.389,0.47962127]
[1771776434740,11.98897014,83.41,83.389,0.47962127]
[1771776435045,0.50254447,83.409,83.389,0.47962127]
[1771776438149,0.50254447,83.415,83.391,0.51061102]
[1771776440150,0.50254447,83.415,82.962,187.6060856]
[1771776440151,0.50254447,83.405,83.375,0.51061102]
[1771776440356,0.50254447,83.399,83.375,0.51061102]
[1771776441556,0.50254447,83.397,83.375,0.51061102]
[1771776442758,0.50254447,83.395,83.375,0.51061102]
[1771776443533,0.50254447,83.395,83.37,0.51061102]
[1771776443837,0.50254447,83.393,83.37,0.51061102]
[1771776445261,0.50254447,83.393,83.371,0.51061102]
[1771776446545,11.98997886,83.403,83.381,0.51061102]
[1771776446765,0.50254447,83.402,83.381,0.51061102]
[1771776450374,0.50254447,83.4,83.381,0.51061102]
[1771776450751,0.28432314,83.399,83.381,0.51061102]
[1771776451177,0.50254447,83.398,83.381,0.51061102]
[1771776451970,11.99083899,83.397,83.381,0.51061102]
[1771776452156,12.49338346,83.397,83.381,0.51061102]
[1771776452353,0.50254447,83.388,83.36,0.51061102]
[1771776452770,0.50254447,83.388,83.361,0.51061102]
[1771776454971,0.50254447,83.386,83.361,0.51061102]
[1771776455978,0.50254447,83.378,83.35,0.1]
[1771776456186,41.9729694,83.387,83.35,0.1]
[1771776456187,0.50254447,83.386,83.36,3.09145715]
[1771776457076,12.49510907,83.385,83.36,3.09145715]
[1771776457996,12.49510907,83.385,83.361,0.51034859]
[1771776458866,0.52983012,83.384,83.361,0.51034859]
[1771776461782,0.52983012,83.396,83.371,0.48482502]
[1771776464583,11.99112656,83.395,83.371,0.48482502]
[1771776464890,0.52983012,83.394,83.371,0.48482502]
[1771776465587,3.09639032,83.39,83.35,0.1]
[1771776465778,0.52983012,83.369,83.335,0.48482502]
[1771776465980,0.52983012,83.359,83.33,0.1]
[1771776467476,0.52983012,83.351,83.33,0.1]
[1771776467681,11.99644905,83.358,83.33,0.1]
[1771776467682,0.52983012,83.349,83.33,0.1]
[1771776467990,0.52983012,83.349,83.313,12.00283056]
[1771776468288,0.52983012,83.349,83.312,0.48482502]
[1771776468682,0.52983012,83.349,83.312,12.48785532]
[1771776469189,0.52983012,83.349,83.27,11.87629128]
[1771776469190,0.52983012,83.328,83.294,12.00555946]
[1771776469375,0.52983012,83.326,83.294,12.49038448]